[Event "Titled Tuesday Blitz April 4 Late 2023"]
[White "Meunier-Pion, Jean"]
[Black "Popov, Mikhail"]
[WhiteFideId "20685327"]
[BlackFideId "4146182"]
[WhiteElo "2124"]
[BlackElo "2244"]
[Result "1/2-1/2"]
[Round "11"]
[TimeControl "180+2"]
[Date "2023.04.04"]
[WhiteClock "0:00:01"]
[BlackClock "0:00:05"]

1. d4 {[%clk 0:03:00]}  Nf6 {[%clk 0:02:59]} 2. c4 {[%clk 0:03:01]}  g6 {[%clk 0:02:59]} 3. g3 {[%clk 0:03:01]}  Bg7 {[%clk 0:03:00]} 4. Bg2 {[%clk 0:03:02]}  O-O {[%clk 0:03:00]} 5. Nc3 {[%clk 0:03:03]}  d6 {[%clk 0:03:00]} 6. Nf3 {[%clk 0:03:03]}  c5 {[%clk 0:03:00]} 7. h3 {[%clk 0:02:51]}  Nc6 {[%clk 0:02:58]} 8. d5 {[%clk 0:02:51]}  Na5 {[%clk 0:02:58]} 9. Nd2 {[%clk 0:02:49]}  e6 {[%clk 0:02:57]} 10. O-O {[%clk 0:02:46]}  exd5 {[%clk 0:02:56]} 11. cxd5 {[%clk 0:02:46]}  a6 {[%clk 0:02:51]} 12. a4 {[%clk 0:02:44]}  Rb8 {[%clk 0:02:50]} 13. e4 {[%clk 0:02:34]}  b5 {[%clk 0:02:49]} 14. axb5 {[%clk 0:02:33]}  axb5 {[%clk 0:02:50]} 15. e5 {[%clk 0:02:10]}  dxe5 {[%clk 0:02:43]} 16. Nde4 {[%clk 0:02:10]}  Nxe4 {[%clk 0:02:36]} 17. Nxe4 {[%clk 0:02:11]}  c4 {[%clk 0:02:32]} 18. Bg5 {[%clk 0:02:11]}  f6 {[%clk 0:02:31]} 19. Be3 {[%clk 0:02:09]}  Nb3 {[%clk 0:02:30]} 20. Ra7 {[%clk 0:02:08]}  Rf7 {[%clk 0:01:56]} 21. Rxf7 {[%clk 0:01:59]}  Kxf7 {[%clk 0:01:57]} 22. f4 {[%clk 0:02:00]}  f5 {[%clk 0:01:33]} 23. fxe5 {[%clk 0:01:56]}  Bxe5 {[%clk 0:01:32]} 24. Ng5+ {[%clk 0:01:35]}  Kg7 {[%clk 0:01:23]} 25. h4 {[%clk 0:01:24]}  Qf6 {[%clk 0:01:10]} 26. h5 {[%clk 0:01:17]}  Bd4 {[%clk 0:00:49]} 27. h6+ {[%clk 0:00:39]}  Kxh6 {[%clk 0:00:48]} 28. Qe1 {[%clk 0:00:25]}  Qxg5 {[%clk 0:00:43]} 29. Bxd4 {[%clk 0:00:24]}  Nxd4 {[%clk 0:00:43]} 30. Qe5 {[%clk 0:00:22]}  Qxg3 {[%clk 0:00:36]} 31. Qxd4 {[%clk 0:00:20]}  Bd7 {[%clk 0:00:11]} 32. Rf3 {[%clk 0:00:18]}  Qe1+ {[%clk 0:00:11]} 33. Kh2 {[%clk 0:00:18]}  Re8 {[%clk 0:00:08]} 34. Rh3+ {[%clk 0:00:16]}  Kg5 {[%clk 0:00:09]} 35. Rg3+ {[%clk 0:00:16]}  Kh6 {[%clk 0:00:07]} 36. Rh3+ {[%clk 0:00:12]}  Kg5 {[%clk 0:00:07]} 37. Rg3+ {[%clk 0:00:04]}  Kh6 {[%clk 0:00:05]} 38. Rh3+ {[%clk 0:00:01]} 1/2-1/2


[Site "https://www.chess.com"]

[Event "Titled Tuesday Blitz April 4 Late 2023"]
[White "Krasteva, Beloslava"]
[Black "Korkmaz, Necmettin"]
[WhiteFideId "2922029"]
[BlackFideId "6303285"]
[WhiteElo "2187"]
[BlackElo "2097"]
[Result "0-1"]
[Round "11"]
[TimeControl "180+2"]
[Date "2023.04.04"]
[WhiteClock "0:00:02"]
[BlackClock "0:01:26"]

1. d4 {[%clk 0:03:00]}  d5 {[%clk 0:02:57]} 2. Nf3 {[%clk 0:02:58]}  Nf6 {[%clk 0:02:56]} 3. Bf4 {[%clk 0:02:57]}  c5 {[%clk 0:02:55]} 4. e3 {[%clk 0:02:57]}  Nc6 {[%clk 0:02:56]} 5. Nbd2 {[%clk 0:02:55]}  Qb6 {[%clk 0:02:52]} 6. dxc5 {[%clk 0:02:45]}  Qxb2 {[%clk 0:02:50]} 7. Rb1 {[%clk 0:02:43]}  Qc3 {[%clk 0:02:50]} 8. Bb5 {[%clk 0:02:43]}  g6 {[%clk 0:02:46]} 9. O-O {[%clk 0:02:40]}  Bg7 {[%clk 0:02:46]} 10. Be5 {[%clk 0:02:26]}  Qxc5 {[%clk 0:02:33]} 11. c4 {[%clk 0:02:24]}  dxc4 {[%clk 0:02:29]} 12. Nxc4 {[%clk 0:02:14]}  O-O {[%clk 0:02:26]} 13. Bxc6 {[%clk 0:01:57]}  Qxc6 {[%clk 0:02:25]} 14. Na5 {[%clk 0:01:39]}  Qa6 {[%clk 0:02:21]} 15. Qd2 {[%clk 0:01:15]}  Bf5 {[%clk 0:01:52]} 16. Rxb7 {[%clk 0:01:04]}  Rfd8 {[%clk 0:01:51]} 17. Qb4 {[%clk 0:00:49]}  Nd5 {[%clk 0:01:49]} 18. Qb5 {[%clk 0:00:39]}  Qxb5 {[%clk 0:01:48]} 19. Rxb5 {[%clk 0:00:38]}  Bd3 {[%clk 0:01:49]} 20. Rbb1 {[%clk 0:00:09]}  Bxf1 {[%clk 0:01:44]} 21. Kxf1 {[%clk 0:00:08]}  f6 {[%clk 0:01:41]} 22. Bd4 {[%clk 0:00:07]}  e5 {[%clk 0:01:41]} 23. Bc5 {[%clk 0:00:07]}  Rac8 {[%clk 0:01:36]} 24. Nb7 {[%clk 0:00:07]}  Rd7 {[%clk 0:01:31]} 25. e4 {[%clk 0:00:07]}  Nc3 {[%clk 0:01:30]} 26. Rb3 {[%clk 0:00:06]}  Nxe4 {[%clk 0:01:30]} 27. Bxa7 {[%clk 0:00:04]}  Rcc7 {[%clk 0:01:27]} 28. Bb8 {[%clk 0:00:02]}  Rxb7 {[%clk 0:01:26]} 0-1


[Site "https://www.chess.com"]

[Event "Titled Tuesday Blitz April 4 Late 2023"]
[White "Goroshkov, Maksym"]
[Black "Moral Garcia, Serafin"]
[WhiteFideId "14142716"]
[BlackFideId "2201925"]
[WhiteElo "2322"]
[BlackElo "2274"]
[Result "0-1"]
[Round "11"]
[TimeControl "180+2"]
[Date "2023.04.04"]
[WhiteClock "0:00:41"]
[BlackClock "0:00:18"]

1. e4 {[%clk 0:02:59]}  c5 {[%clk 0:02:56]} 2. d4 {[%clk 0:02:59]}  cxd4 {[%clk 0:02:55]} 3. c3 {[%clk 0:02:59]}  Nf6 {[%clk 0:02:55]} 4. e5 {[%clk 0:02:59]}  Nd5 {[%clk 0:02:55]} 5. Bc4 {[%clk 0:02:59]}  e6 {[%clk 0:02:54]} 6. cxd4 {[%clk 0:02:59]}  d6 {[%clk 0:02:54]} 7. Nf3 {[%clk 0:02:58]}  Nc6 {[%clk 0:02:54]} 8. O-O {[%clk 0:02:58]}  Be7 {[%clk 0:02:52]} 9. Nc3 {[%clk 0:02:57]}  Nxc3 {[%clk 0:02:51]} 10. bxc3 {[%clk 0:02:58]}  dxe5 {[%clk 0:02:50]} 11. dxe5 {[%clk 0:02:59]}  Qxd1 {[%clk 0:02:47]} 12. Rxd1 {[%clk 0:03:00]}  Bd7 {[%clk 0:02:42]} 13. Bf4 {[%clk 0:02:55]}  Rc8 {[%clk 0:02:34]} 14. Bb3 {[%clk 0:02:54]}  Na5 {[%clk 0:02:27]} 15. Rac1 {[%clk 0:02:44]}  Bb5 {[%clk 0:02:26]} 16. Nd4 {[%clk 0:02:40]}  Bd7 {[%clk 0:02:21]} 17. h3 {[%clk 0:02:31]}  Ba3 {[%clk 0:01:56]} 18. Rb1 {[%clk 0:02:22]}  Rxc3 {[%clk 0:01:47]} 19. Bd2 {[%clk 0:02:21]}  Rc5 {[%clk 0:01:46]} 20. Rdc1 {[%clk 0:02:21]}  Bxc1 {[%clk 0:01:41]} 21. Bxc1 {[%clk 0:02:21]}  Nxb3 {[%clk 0:01:35]} 22. Nxb3 {[%clk 0:02:18]}  Rxe5 {[%clk 0:01:32]} 23. Ba3 {[%clk 0:02:18]}  Re2 {[%clk 0:01:22]} 24. Nc1 {[%clk 0:02:04]}  Re1+ {[%clk 0:01:14]} 25. Kh2 {[%clk 0:02:05]}  Bc6 {[%clk 0:01:12]} 26. Rb3 {[%clk 0:02:00]}  Rd1 {[%clk 0:01:09]} 27. Nd3 {[%clk 0:01:59]}  f6 {[%clk 0:01:05]} 28. Nc5 {[%clk 0:01:57]}  Bd5 {[%clk 0:00:57]} 29. Re3 {[%clk 0:01:23]}  Kf7 {[%clk 0:00:55]} 30. f4 {[%clk 0:01:19]}  b6 {[%clk 0:00:52]} 31. Na6 {[%clk 0:01:16]}  Rc8 {[%clk 0:00:49]} 32. Nb4 {[%clk 0:01:14]}  a5 {[%clk 0:00:43]} 33. Nxd5 {[%clk 0:01:10]}  Rxd5 {[%clk 0:00:42]} 34. Rb3 {[%clk 0:01:11]}  b5 {[%clk 0:00:42]} 35. h4 {[%clk 0:00:58]}  b4 {[%clk 0:00:37]} 36. Bb2 {[%clk 0:00:58]}  Rc2 {[%clk 0:00:36]} 37. a3 {[%clk 0:00:52]}  Rdd2 {[%clk 0:00:34]} 38. Ba1 {[%clk 0:00:52]}  Rxg2+ {[%clk 0:00:26]} 39. Kh3 {[%clk 0:00:52]}  Rgd2 {[%clk 0:00:26]} 40. axb4 {[%clk 0:00:51]}  axb4 {[%clk 0:00:25]} 41. Rxb4 {[%clk 0:00:51]}  Rd3+ {[%clk 0:00:24]} 42. Kg4 {[%clk 0:00:52]}  Rg2+ {[%clk 0:00:22]} 43. Kh5 {[%clk 0:00:52]}  Rd5+ {[%clk 0:00:22]} 44. Be5 {[%clk 0:00:51]}  fxe5 {[%clk 0:00:23]} 45. Rb7+ {[%clk 0:00:52]}  Kf6 {[%clk 0:00:19]} 46. f5 {[%clk 0:00:52]}  g6+ {[%clk 0:00:19]} 47. Kh6 {[%clk 0:00:50]}  exf5 {[%clk 0:00:17]} 48. h5 {[%clk 0:00:50]}  gxh5 {[%clk 0:00:17]} 49. Rb6+ {[%clk 0:00:50]}  Ke7 {[%clk 0:00:17]} 50. Rb7+ {[%clk 0:00:50]}  Ke6 {[%clk 0:00:17]} 51. Rb6+ {[%clk 0:00:49]}  Rd6 {[%clk 0:00:17]} 52. Rb7 {[%clk 0:00:49]}  e4 {[%clk 0:00:18]} 53. Kxh5 {[%clk 0:00:47]}  Ke5 {[%clk 0:00:18]} 54. Re7+ {[%clk 0:00:46]}  Kd4 {[%clk 0:00:18]} 55. Rf7 {[%clk 0:00:46]}  Rd5 {[%clk 0:00:18]} 56. Kh4 {[%clk 0:00:45]}  e3 {[%clk 0:00:18]} 57. Kh3 {[%clk 0:00:45]}  Rg6 {[%clk 0:00:18]} 58. Re7 {[%clk 0:00:44]}  Re5 {[%clk 0:00:18]} 59. Rd7+ {[%clk 0:00:43]}  Ke4 {[%clk 0:00:18]} 60. Rd1 {[%clk 0:00:41]}  f4 {[%clk 0:00:19]} 61. Ra1 {[%clk 0:00:41]}  Rh5# {[%clk 0:00:18]} 0-1


[Site "https://www.chess.com"]

[Event "Titled Tuesday Blitz April 4 Late 2023"]
[White "Di Berardino, Diego Rafael"]
[Black "Dudzinski, Pawel"]
[WhiteFideId "2105446"]
[BlackFideId "1117890"]
[WhiteElo "2432"]
[BlackElo "2099"]
[Result "1-0"]
[Round "11"]
[TimeControl "180+2"]
[Date "2023.04.04"]
[WhiteClock "0:00:22"]
[BlackClock "0:00:01"]

1. e4 {[%clk 0:03:00]}  c6 {[%clk 0:02:52]} 2. d4 {[%clk 0:02:57]}  d5 {[%clk 0:02:53]} 3. exd5 {[%clk 0:02:56]}  cxd5 {[%clk 0:02:54]} 4. c4 {[%clk 0:02:57]}  Nf6 {[%clk 0:02:54]} 5. Nc3 {[%clk 0:02:57]}  Nc6 {[%clk 0:02:54]} 6. Bg5 {[%clk 0:02:57]}  e6 {[%clk 0:02:52]} 7. Nf3 {[%clk 0:02:57]}  Be7 {[%clk 0:02:51]} 8. c5 {[%clk 0:02:57]}  Ne4 {[%clk 0:02:50]} 9. Bxe7 {[%clk 0:02:55]}  Qxe7 {[%clk 0:02:51]} 10. Bd3 {[%clk 0:02:49]}  Nxc3 {[%clk 0:02:47]} 11. bxc3 {[%clk 0:02:50]}  O-O {[%clk 0:02:47]} 12. O-O {[%clk 0:02:50]}  e5 {[%clk 0:02:45]} 13. Re1 {[%clk 0:01:59]}  e4 {[%clk 0:02:44]} 14. c4 {[%clk 0:01:58]}  Bg4 {[%clk 0:02:33]} 15. cxd5 {[%clk 0:01:55]}  Bxf3 {[%clk 0:02:24]} 16. gxf3 {[%clk 0:01:50]}  Qg5+ {[%clk 0:01:14]} 17. Kh1 {[%clk 0:01:50]}  exd3 {[%clk 0:00:30]} 18. dxc6 {[%clk 0:01:48]}  bxc6 {[%clk 0:00:30]} 19. Qxd3 {[%clk 0:01:47]}  Rad8 {[%clk 0:00:30]} 20. Qe4 {[%clk 0:01:39]}  Rd5 {[%clk 0:00:27]} 21. Rab1 {[%clk 0:01:25]}  Qf6 {[%clk 0:00:25]} 22. Rb4 {[%clk 0:01:12]}  g6 {[%clk 0:00:25]} 23. Ra4 {[%clk 0:01:10]}  Rfd8 {[%clk 0:00:24]} 24. Ra6 {[%clk 0:00:57]}  Rxd4 {[%clk 0:00:10]} 25. Qxc6 {[%clk 0:00:57]}  Qf5 {[%clk 0:00:11]} 26. Rxa7 {[%clk 0:00:36]}  Rd1 {[%clk 0:00:05]} 27. Re7 {[%clk 0:00:35]}  Rxe1+ {[%clk 0:00:04]} 28. Rxe1 {[%clk 0:00:34]}  Rc8 {[%clk 0:00:03]} 29. Re8+ {[%clk 0:00:28]}  Rxe8 {[%clk 0:00:03]} 30. Qxe8+ {[%clk 0:00:29]}  Kg7 {[%clk 0:00:04]} 31. Qe3 {[%clk 0:00:27]}  Qb1+ {[%clk 0:00:03]} 32. Kg2 {[%clk 0:00:26]}  Qxa2 {[%clk 0:00:04]} 33. Qe5+ {[%clk 0:00:23]}  Kh6 {[%clk 0:00:01]} 34. c6 {[%clk 0:00:22]} 1-0


[Site "https://www.chess.com"]

[Event "Titled Tuesday Blitz April 4 Late 2023"]
[White "lolliNOPE"]
[Black "Gubajdullin, Alexei"]
[BlackFideId "4141202"]
[WhiteElo "2179"]
[BlackElo "2279"]
[Result "1-0"]
[Round "11"]
[TimeControl "180+2"]
[Date "2023.04.04"]
[WhiteClock "0:01:14"]
[BlackClock "0:01:51"]

1. e4 {[%clk 0:03:00]}  e5 {[%clk 0:02:58]} 2. Nc3 {[%clk 0:03:00]}  Nf6 {[%clk 0:02:57]} 3. f4 {[%clk 0:03:00]}  Nc6 {[%clk 0:02:57]} 4. fxe5 {[%clk 0:02:56]}  Nxe5 {[%clk 0:02:57]} 5. Nf3 {[%clk 0:02:57]}  d6 {[%clk 0:02:55]} 6. d4 {[%clk 0:02:55]}  Nxf3+ {[%clk 0:02:46]} 7. gxf3 {[%clk 0:02:55]}  Nh5 {[%clk 0:02:45]} 8. Be3 {[%clk 0:02:53]}  Be7 {[%clk 0:02:44]} 9. Qd2 {[%clk 0:02:48]}  Bh4+ {[%clk 0:02:42]} 10. Bf2 {[%clk 0:02:48]}  Bxf2+ {[%clk 0:02:42]} 11. Qxf2 {[%clk 0:02:48]}  c6 {[%clk 0:02:41]} 12. O-O-O {[%clk 0:02:46]}  Qf6 {[%clk 0:02:40]} 13. Kb1 {[%clk 0:02:45]}  O-O {[%clk 0:02:35]} 14. Rg1 {[%clk 0:02:33]}  Nf4 {[%clk 0:02:27]} 15. Qg3 {[%clk 0:02:26]}  g6 {[%clk 0:02:26]} 16. h4 {[%clk 0:02:14]}  Be6 {[%clk 0:02:25]} 17. d5 {[%clk 0:01:44]}  Bxd5 {[%clk 0:02:20]} 18. exd5 {[%clk 0:01:42]}  Nh5 {[%clk 0:02:17]} 19. Qg5 {[%clk 0:01:36]}  Qxf3 {[%clk 0:02:15]} 20. Be2 {[%clk 0:01:35]}  Qf4 {[%clk 0:02:13]} 21. Bxh5 {[%clk 0:01:32]}  Qxg5 {[%clk 0:02:11]} 22. Rxg5 {[%clk 0:01:32]}  c5 {[%clk 0:02:10]} 23. Bf3 {[%clk 0:01:28]}  Rfe8 {[%clk 0:02:11]} 24. Rgg1 {[%clk 0:01:27]}  Re3 {[%clk 0:02:11]} 25. Bh1 {[%clk 0:01:24]}  a6 {[%clk 0:02:09]} 26. h5 {[%clk 0:01:24]}  Rae8 {[%clk 0:02:08]} 27. hxg6 {[%clk 0:01:24]}  hxg6 {[%clk 0:02:07]} 28. Ne4 {[%clk 0:01:24]}  R3xe4 {[%clk 0:02:04]} 29. Bxe4 {[%clk 0:01:23]}  Rxe4 {[%clk 0:02:04]} 30. Rde1 {[%clk 0:01:19]}  Rd4 {[%clk 0:02:03]} 31. Re7 {[%clk 0:01:19]}  Rxd5 {[%clk 0:02:02]} 32. Rxb7 {[%clk 0:01:19]}  Kg7 {[%clk 0:01:59]} 33. Rf1 {[%clk 0:01:17]}  g5 {[%clk 0:01:54]} 34. Rbxf7+ {[%clk 0:01:15]}  Kg6 {[%clk 0:01:54]} 35. R7f6+ {[%clk 0:01:15]}  Kh5 {[%clk 0:01:52]} 36. R6f5 {[%clk 0:01:15]}  Kg4 {[%clk 0:01:51]} 37. Rxd5 {[%clk 0:01:14]} 1-0


[Site "https://www.chess.com"]

[Event "Titled Tuesday Blitz April 4 Late 2023"]
[White "Santos Flores, Alberto"]
[Black "Gontcharov, Vladislav"]
[WhiteFideId "3601234"]
[BlackFideId "4123492"]
[WhiteElo "2235"]
[BlackElo "2420"]
[Result "1-0"]
[Round "11"]
[TimeControl "180+2"]
[Date "2023.04.04"]
[WhiteClock "0:00:31"]
[BlackClock "0:00:20"]

1. d4 {[%clk 0:03:00]}  Nf6 {[%clk 0:02:59]} 2. Bf4 {[%clk 0:03:00]}  c5 {[%clk 0:02:57]} 3. c3 {[%clk 0:02:58]}  Qb6 {[%clk 0:02:56]} 4. Qb3 {[%clk 0:02:57]}  Qxb3 {[%clk 0:02:54]} 5. axb3 {[%clk 0:02:57]}  cxd4 {[%clk 0:02:54]} 6. cxd4 {[%clk 0:02:57]}  Nc6 {[%clk 0:02:55]} 7. e3 {[%clk 0:02:56]}  d6 {[%clk 0:02:53]} 8. Nc3 {[%clk 0:02:55]}  Kd8 {[%clk 0:02:33]} 9. Nf3 {[%clk 0:02:53]}  Nb4 {[%clk 0:02:30]} 10. Kd2 {[%clk 0:02:49]}  Nfd5 {[%clk 0:02:29]} 11. Bg3 {[%clk 0:02:46]}  Bf5 {[%clk 0:02:22]} 12. Nh4 {[%clk 0:02:45]}  Bg6 {[%clk 0:02:21]} 13. Nxg6 {[%clk 0:02:44]}  hxg6 {[%clk 0:02:21]} 14. Bc4 {[%clk 0:02:41]}  e6 {[%clk 0:02:08]} 15. Bxd5 {[%clk 0:02:39]}  exd5 {[%clk 0:02:06]} 16. Ra4 {[%clk 0:02:38]}  Nc6 {[%clk 0:01:44]} 17. Nxd5 {[%clk 0:02:38]}  Be7 {[%clk 0:01:39]} 18. Rha1 {[%clk 0:02:36]}  a6 {[%clk 0:01:33]} 19. Rc4 {[%clk 0:02:22]}  Rh5 {[%clk 0:01:08]} 20. e4 {[%clk 0:02:01]}  Rb8 {[%clk 0:01:03]} 21. h3 {[%clk 0:01:57]}  Kd7 {[%clk 0:01:02]} 22. Rac1 {[%clk 0:01:54]}  Bd8 {[%clk 0:01:01]} 23. Kd3 {[%clk 0:01:35]}  Rxd5 {[%clk 0:00:58]} 24. exd5 {[%clk 0:01:34]}  Ne7 {[%clk 0:00:59]} 25. Bh4 {[%clk 0:01:14]}  f6 {[%clk 0:00:58]} 26. Ke4 {[%clk 0:01:06]}  g5 {[%clk 0:00:58]} 27. Bg3 {[%clk 0:01:05]}  f5+ {[%clk 0:00:58]} 28. Kd3 {[%clk 0:01:05]}  f4 {[%clk 0:00:55]} 29. Bh2 {[%clk 0:01:03]}  Nxd5 {[%clk 0:00:55]} 30. Re1 {[%clk 0:00:56]}  Ba5 {[%clk 0:00:53]} 31. Ra1 {[%clk 0:00:49]}  Bd8 {[%clk 0:00:31]} 32. Ke4 {[%clk 0:00:46]}  Ne7 {[%clk 0:00:27]} 33. d5 {[%clk 0:00:45]}  g6 {[%clk 0:00:25]} 34. g4 {[%clk 0:00:41]}  fxg3 {[%clk 0:00:24]} 35. fxg3 {[%clk 0:00:38]}  Nf5 {[%clk 0:00:23]} 36. g4 {[%clk 0:00:38]}  Nh4 {[%clk 0:00:21]} 37. Rf1 {[%clk 0:00:37]}  Be7 {[%clk 0:00:21]} 38. Bg3 {[%clk 0:00:34]}  Ng2 {[%clk 0:00:20]} 39. Rf7 {[%clk 0:00:32]}  Nf4 {[%clk 0:00:19]} 40. Bxf4 {[%clk 0:00:31]}  gxf4 {[%clk 0:00:20]} 41. Kxf4 {[%clk 0:00:31]} 1-0


[Site "https://www.chess.com"]

[Event "Titled Tuesday Blitz April 4 Late 2023"]
[White "Goltseva, Ekaterina"]
[Black "micke12a"]
[WhiteFideId "24173770"]
[WhiteElo "2200"]
[BlackElo "2362"]
[Result "1-0"]
[Round "11"]
[TimeControl "180+2"]
[Date "2023.04.04"]
[WhiteClock "0:00:05"]
[BlackClock "0:00:56"]

1. e4 {[%clk 0:02:50]}  g6 {[%clk 0:02:56]} 2. d4 {[%clk 0:02:46]}  Bg7 {[%clk 0:02:57]} 3. Nc3 {[%clk 0:02:46]}  c6 {[%clk 0:02:57]} 4. Be3 {[%clk 0:02:46]}  d5 {[%clk 0:02:57]} 5. e5 {[%clk 0:02:47]}  h5 {[%clk 0:02:57]} 6. Qd2 {[%clk 0:02:45]}  Nh6 {[%clk 0:02:58]} 7. Nf3 {[%clk 0:02:43]}  Nf5 {[%clk 0:02:58]} 8. Bg5 {[%clk 0:02:43]}  Qa5 {[%clk 0:02:55]} 9. Be2 {[%clk 0:02:37]}  Nd7 {[%clk 0:02:52]} 10. h3 {[%clk 0:02:30]}  e6 {[%clk 0:02:49]} 11. O-O-O {[%clk 0:02:28]}  c5 {[%clk 0:02:43]} 12. Kb1 {[%clk 0:01:35]}  cxd4 {[%clk 0:02:39]} 13. Nb5 {[%clk 0:01:33]}  Qxd2 {[%clk 0:02:36]} 14. Rxd2 {[%clk 0:01:11]}  Kf8 {[%clk 0:02:34]} 15. Bf4 {[%clk 0:01:02]}  a6 {[%clk 0:02:28]} 16. Nbxd4 {[%clk 0:01:02]}  Nxd4 {[%clk 0:02:27]} 17. Rxd4 {[%clk 0:01:03]}  b5 {[%clk 0:02:24]} 18. Rdd1 {[%clk 0:00:55]}  Bb7 {[%clk 0:02:24]} 19. c4 {[%clk 0:00:45]}  bxc4 {[%clk 0:02:18]} 20. Bxc4 {[%clk 0:00:45]}  Nc5 {[%clk 0:02:07]} 21. Be2 {[%clk 0:00:42]}  Ne4 {[%clk 0:02:06]} 22. Be3 {[%clk 0:00:42]}  Kg8 {[%clk 0:02:04]} 23. Rc1 {[%clk 0:00:41]}  Rc8 {[%clk 0:01:59]} 24. Rxc8+ {[%clk 0:00:40]}  Bxc8 {[%clk 0:02:00]} 25. Rc1 {[%clk 0:00:40]}  Kh7 {[%clk 0:02:00]} 26. Bd3 {[%clk 0:00:39]}  Bh6 {[%clk 0:01:59]} 27. Bxe4 {[%clk 0:00:24]}  dxe4 {[%clk 0:01:57]} 28. Ng5+ {[%clk 0:00:22]}  Kg7 {[%clk 0:01:35]} 29. Rc7 {[%clk 0:00:19]}  Rf8 {[%clk 0:01:33]} 30. Nxe4 {[%clk 0:00:11]}  Bxe3 {[%clk 0:01:29]} 31. fxe3 {[%clk 0:00:12]}  a5 {[%clk 0:01:27]} 32. Nd6 {[%clk 0:00:08]}  Ba6 {[%clk 0:01:27]} 33. Ra7 {[%clk 0:00:08]}  Bd3+ {[%clk 0:01:27]} 34. Kc1 {[%clk 0:00:08]}  Bf1 {[%clk 0:01:24]} 35. g3 {[%clk 0:00:06]}  Bxh3 {[%clk 0:01:25]} 36. Rxa5 {[%clk 0:00:06]}  g5 {[%clk 0:01:25]} 37. Ra4 {[%clk 0:00:06]}  Rb8 {[%clk 0:01:20]} 38. b3 {[%clk 0:00:05]}  Rb6 {[%clk 0:01:17]} 39. Ra7 {[%clk 0:00:05]}  h4 {[%clk 0:01:16]} 40. Rxf7+ {[%clk 0:00:03]}  Kg6 {[%clk 0:01:16]} 41. Rf6+ {[%clk 0:00:04]}  Kh5 {[%clk 0:01:16]} 42. gxh4 {[%clk 0:00:04]}  Kxh4 {[%clk 0:01:14]} 43. Ne4 {[%clk 0:00:03]}  Bf5 {[%clk 0:01:09]} 44. Rh6+ {[%clk 0:00:02]}  Kg4 {[%clk 0:01:10]} 45. Nf6+ {[%clk 0:00:03]}  Kf3 {[%clk 0:01:10]} 46. Kd2 {[%clk 0:00:02]}  g4 {[%clk 0:01:07]} 47. Nh5 {[%clk 0:00:02]}  Ra6 {[%clk 0:01:06]} 48. a4 {[%clk 0:00:02]}  Rb6 {[%clk 0:01:06]} 49. Kc3 {[%clk 0:00:03]}  Rc6+ {[%clk 0:01:02]} 50. Kb4 {[%clk 0:00:03]}  g3 {[%clk 0:01:03]} 51. Nxg3 {[%clk 0:00:03]}  Kxg3 {[%clk 0:01:04]} 52. Kb5 {[%clk 0:00:03]}  Rc3 {[%clk 0:01:04]} 53. b4 {[%clk 0:00:04]}  Rxe3 {[%clk 0:01:04]} 54. a5 {[%clk 0:00:04]}  Rxe5+ {[%clk 0:01:05]} 55. Kb6 {[%clk 0:00:05]}  Re4 {[%clk 0:01:05]} 56. b5 {[%clk 0:00:05]}  Rb4 {[%clk 0:01:05]} 57. a6 {[%clk 0:00:05]}  Bd3 {[%clk 0:01:05]} 58. Rh5 {[%clk 0:00:05]}  Kg4 {[%clk 0:01:05]} 59. Rc5 {[%clk 0:00:04]}  Kf4 {[%clk 0:00:58]} 60. a7 {[%clk 0:00:05]}  Ra4 {[%clk 0:00:59]} 61. Kb7 {[%clk 0:00:05]}  Be4+ {[%clk 0:00:59]} 62. Kb8 {[%clk 0:00:05]}  e5 {[%clk 0:00:59]} 63. b6 {[%clk 0:00:05]}  Bg2 {[%clk 0:00:58]} 64. Rc2 {[%clk 0:00:03]}  Be4 {[%clk 0:00:56]} 65. Rb2 {[%clk 0:00:03]}  Bd5 {[%clk 0:00:54]} 66. b7 {[%clk 0:00:02]}  e4 {[%clk 0:00:53]} 67. a8=Q {[%clk 0:00:02]}  Ra7 {[%clk 0:00:54]} 68. Qxa7 {[%clk 0:00:02]}  e3 {[%clk 0:00:55]} 69. Qc5 {[%clk 0:00:03]}  e2 {[%clk 0:00:55]} 70. Rb4+ {[%clk 0:00:04]}  Be4 {[%clk 0:00:55]} 71. Rb1 {[%clk 0:00:04]}  Kf3 {[%clk 0:00:55]} 72. Re1 {[%clk 0:00:03]}  Bd3 {[%clk 0:00:54]} 73. Rxe2 {[%clk 0:00:04]}  Kxe2 {[%clk 0:00:55]} 74. Kc7 {[%clk 0:00:05]}  Be4 {[%clk 0:00:56]} 75. b8=Q {[%clk 0:00:05]} 1-0


[Site "https://www.chess.com"]

[Event "Titled Tuesday Blitz April 4 Late 2023"]
[White "Kielinkei"]
[Black "Perske, Thore"]
[BlackFideId "12902195"]
[WhiteElo "2421"]
[BlackElo "2336"]
[Result "1-0"]
[Round "11"]
[TimeControl "180+2"]
[Date "2023.04.04"]
[WhiteClock "0:01:22"]
[BlackClock "0:02:40"]

1. c4 {[%clk 0:03:00]}  c6 {[%clk 0:02:59]} 2. Nc3 {[%clk 0:02:58]}  d5 {[%clk 0:03:00]} 3. e3 {[%clk 0:02:59]}  Nf6 {[%clk 0:02:59]} 4. Nf3 {[%clk 0:02:57]}  e6 {[%clk 0:02:59]} 5. b3 {[%clk 0:02:56]}  Bd6 {[%clk 0:02:59]} 6. Bb2 {[%clk 0:02:51]}  O-O {[%clk 0:03:00]} 7. g4 {[%clk 0:02:49]}  Nxg4 {[%clk 0:02:56]} 8. Rg1 {[%clk 0:02:48]}  e5 {[%clk 0:02:54]} 9. cxd5 {[%clk 0:02:43]}  cxd5 {[%clk 0:02:54]} 10. Nxd5 {[%clk 0:02:42]}  Nf6 {[%clk 0:02:51]} 11. Nxf6+ {[%clk 0:02:28]}  Qxf6 {[%clk 0:02:52]} 12. Bd3 {[%clk 0:02:08]}  Bf5 {[%clk 0:02:49]} 13. Bxf5 {[%clk 0:01:43]}  Qxf5 {[%clk 0:02:50]} 14. d3 {[%clk 0:01:34]}  Nc6 {[%clk 0:02:44]} 15. Qe2 {[%clk 0:01:28]}  e4 {[%clk 0:02:40]} 16. Rxg7+ {[%clk 0:01:22]} 1-0


[Site "https://www.chess.com"]